bitfinex/quotes_SOLUSD_20241021
["timestamp","ask_amount","ask_price","bid_price","bid_amount"]
[1729471091200,23.776884,169.51,169.42,2.70538557]
[1729471091383,5.9005,169.48,169.43,5.902]
[1729471091578,23.776884,169.49,169.45,5.9011]
[1729471091782,5.9,169.5,169.45,5.9011]
[1729471092003,23.776884,169.5,169.39,20.0]
[1729471092178,0.87023081,169.51,169.4,1.69153748]
[1729471092383,6.76963081,169.51,169.46,5.901]
[1729471093003,6.76963081,169.51,169.37,2.70538557]
[1729471093186,6.76963081,169.51,169.43,5.9019]
[1729471093503,6.76963081,169.51,169.44,1.6911799]
[1729471093700,0.87023081,169.51,169.45,5.9014]
[1729471094011,0.87023081,169.51,169.46,5.901]
[1729471095113,23.776884,169.5,169.37,2.70538557]
[1729471095287,23.776884,169.5,169.4,5.9029]
[1729471095487,23.776884,169.5,169.41,1.69215798]
[1729471095488,5.9003,169.49,169.41,1.69215798]
[1729471095720,29.676584,169.5,169.42,7.59445798]
[1729471095933,29.676584,169.5,169.42,5.9023]
[1729471096217,29.676584,169.5,169.43,5.9021]
[1729471097600,6.76963081,169.51,169.44,5.9017]
[1729471097798,0.87023081,169.51,169.36,43.776884]
[1729471097987,5.8997,169.5,169.43,5.9021]
[1729471099323,5.9,169.49,169.42,5.9024]
[1729471100313,5.9,169.49,169.37,2.70538557]
[1729471100314,23.876884,169.48,169.37,2.70538557]
[1729471100606,0.1,169.48,169.38,1.69499875]
[1729471100812,6.77225604,169.45,169.38,1.69499875]
[1729471101213,0.87055604,169.45,169.38,7.59859875]
[1729471101405,6.77205604,169.45,169.36,5.9045]
[1729471101593,0.87055604,169.45,169.38,5.9038]
[1729471101900,5.9017,169.44,169.38,5.9038]
[1729471104091,5.9023,169.43,169.36,5.9042]
[1729471104298,5.9023,169.43,169.37,1.69530247]
[1729471104716,5.9023,169.43,169.37,7.59940247]
[1729471104905,5.9023,169.43,169.37,5.9041]
[1729471105891,5.9028,169.42,169.35,5.9046]
[1729471106213,5.9029,169.41,169.35,5.9046]
[1729471106395,15.8413,169.43,169.36,1.69581675]
[1729471106599,15.8413,169.43,169.34,20.0]
[1729471106600,15.8413,169.43,169.4,5.9028]
[1729471106810,15.8413,169.43,169.39,5.9035]
[1729471107107,15.8413,169.43,169.35,2.71288375]
[1729471107418,21.7434,169.43,169.38,5.9038]
[1729471107801,15.8413,169.43,169.36,5.9045]
[1729471108000,5.9027,169.42,169.34,20.0]
[1729471108202,5.9029,169.41,169.36,5.9045]
[1729471108400,6.77135236,169.41,169.36,5.9045]
[1729471112805,6.77135236,169.41,169.34,20.0]
[1729471113108,0.86845236,169.41,169.37,5.9041]
[1729471115735,0.86845236,169.41,169.38,5.9037]
[1729471116026,0.86845236,169.41,169.37,5.9041]
[1729471117034,0.86845236,169.41,169.38,5.9038]
[1729471117505,0.86845236,169.41,169.33,2.71579713]
[1729471117702,0.86845236,169.41,169.32,20.0]
[1729471117703,0.86845236,169.41,169.34,1.69826554]
[1729471117932,0.86845236,169.41,169.39,5.9035]
[1729471120030,0.86845236,169.41,169.33,2.71579713]
[1729471120216,0.86845236,169.41,169.37,5.904]
[1729471120423,0.86845236,169.41,169.38,1.70056091]
[1729471121318,0.86845236,169.41,169.37,5.904]
[1729471121526,0.86845236,169.41,169.38,1.70154106]
[1729471121920,5.9033,169.4,169.38,1.70154106]
[1729471122123,5.9033,169.4,169.33,2.72273493]
[1729471122124,23.776884,169.4,169.33,8.62823493]
[1729471122332,23.776884,169.4,169.34,1.70238072]
[1729471122525,23.776884,169.4,169.35,1.70238072]
[1729471122723,29.679984,169.4,169.36,1.70238072]
[1729471122920,29.679984,169.4,169.35,5.9049]
[1729471123228,23.776884,169.4,169.36,1.70218265]
[1729471123421,23.776884,169.4,169.36,5.9042]
[1729471123625,6.77135236,169.41,169.36,5.9042]
[1729471128723,23.776884,169.4,169.31,2.72334028]
[1729471129041,0.86845236,169.41,169.32,1.70227933]
[1729471129240,0.86845236,169.41,169.33,1.70227933]
[1729471129418,0.86845236,169.41,169.38,5.9038]
[1729471129817,0.86845236,169.41,169.31,2.72334028]
[1729471130016,0.86845236,169.41,169.37,5.9042]
[1729471130635,0.86845236,169.41,169.31,2.72334028]
[1729471130817,6.77155236,169.41,169.32,1.70172516]
[1729471131017,6.77155236,169.41,169.37,5.9042]
[1729471132342,0.86845236,169.41,169.37,5.9042]
[1729471133040,0.86845236,169.41,169.35,5.9046]
[1729471133219,5.9032,169.4,169.36,1.70200103]
[1729471134036,6.77125236,169.41,169.36,5.9045]
[1729471137228,0.86845236,169.41,169.38,5.9037]
[1729471137432,0.86845236,169.41,169.36,5.9042]
[1729471137935,6.77145236,169.41,169.36,5.9042]
[1729471140028,0.86845236,169.41,169.37,5.9041]
[1729471140925,0.86845236,169.41,169.38,5.9038]
[1729471141335,0.86845236,169.41,169.31,2.72334733]
[1729471141637,0.86845236,169.41,169.3,20.0]
[1729471141843,0.86845236,169.41,169.37,5.9039]
[1729471142231,0.86845236,169.41,169.31,2.72311219]
[1729471142435,0.86845236,169.41,169.38,5.9035]
[1729471145746,0.86845236,169.41,169.38,5.9037]
[1729471146441,0.86845236,169.41,169.37,5.904]
[1729471148342,0.86845236,169.41,169.37,4.904]
[1729471151241,0.86845236,169.41,169.38,1.70525033]
[1729471153421,0.86845236,169.41,169.37,4.904]
[1729471153628,0.86845236,169.41,169.38,1.70614267]
[1729471154341,0.86845236,169.41,169.39,1.70614267]
[1729471154535,0.86845236,169.41,169.37,4.904]
[1729471154729,0.86845236,169.41,169.38,1.70699919]
[1729471154944,0.86845236,169.41,169.37,4.904]
[1729471155141,0.86845236,169.41,169.38,1.70705936]
[1729471155328,0.86845236,169.41,169.39,1.70705936]
[1729471155530,0.86845236,169.41,169.37,4.904]
[1729471155736,0.86845236,169.41,169.38,1.70786737]
[1729471156034,0.86845236,169.41,169.39,1.70786737]
[1729471156345,0.86845236,169.41,169.37,4.904]
[1729471156543,0.86845236,169.41,169.38,1.70833091]
[1729471156742,0.86845236,169.41,169.36,5.9045]
[1729471156948,0.86845236,169.41,169.37,1.70851613]
[1729471157144,6.77125236,169.41,169.38,1.70851613]
[1729471157447,6.77125236,169.41,169.32,2.73024437]
[1729471157448,15.8413,169.43,169.39,1.70902029]
[1729471157654,15.8413,169.43,169.4,1.70902029]
[1729471157845,15.8413,169.43,169.3,20.0]
[1729471157846,21.7434,169.43,169.38,5.9038]
[1729471158152,22.57616686,169.43,169.39,1.70896044]
[1729471158455,22.57616686,169.43,169.4,1.70896044]
[1729471158750,22.57616686,169.43,169.38,5.9038]
[1729471158949,16.67406686,169.43,169.39,1.70965025]
[1729471159258,5.9024,169.42,169.4,1.70965025]
[1729471159432,5.9024,169.42,169.41,1.70965025]
[1729471159852,16.67406686,169.43,169.41,1.70965025]
[1729471160053,22.57636686,169.43,169.38,5.9035]
[1729471160267,22.57636686,169.43,169.39,1.71095839]
[1729471160430,22.57636686,169.43,169.4,1.71095839]
[1729471160752,22.57636686,169.43,169.41,1.71095839]
[1729471160962,22.57636686,169.43,169.38,5.9035]
[1729471161171,22.57636686,169.43,169.39,4.45139771]
[1729471161328,21.7436,169.43,169.4,1.71190599]
[1729471161531,21.7436,169.43,169.41,1.71190599]
[1729471161729,46.35342182,169.43,169.42,1.71190599]
[1729471164861,46.35342182,169.43,169.4,2.7411067]
[1729471164862,46.35342182,169.43,169.38,5.9035]
[1729471165155,46.35342182,169.43,169.39,1.71300443]
[1729471165354,5.9025,169.42,169.4,4.45497966]
[1729471165554,46.35352182,169.43,169.41,1.71329553]
[1729471165857,46.35352182,169.43,169.42,1.71329553]
[1729471166235,0.83293782,169.43,169.42,1.71329553]
[1729471166431,0.83293782,169.43,169.42,7.61569553]
[1729471166648,0.83293782,169.43,169.42,10.35774918]
[1729471167060,6.15384475,169.47,169.46,5.901]
[1729471167447,6.15384475,169.47,169.46,1.71286143]
[1729471167770,21.9966,169.55,169.46,4.45491508]
[1729471167959,5.8994,169.51,169.47,4.45491508]
[1729471168140,5.8994,169.51,169.48,1.71286143]
[1729471168458,5.8994,169.51,169.45,5.9013]
[1729471168645,5.8994,169.51,169.46,2.73477597]
[1729471168963,6.73180651,169.51,169.47,4.44375461]
[1729471169148,6.73180651,169.51,169.48,1.70897864]
[1729471169333,6.73180651,169.51,169.45,5.9013]
[1729471169334,6.73180651,169.51,169.49,1.70897864]
[1729471169537,6.73180651,169.51,169.5,1.70897864]
[1729471169764,30.50869051,169.51,169.5,1.70897864]
[1729471170153,24.60929051,169.51,169.43,2.73477597]
[1729471170343,5.8999,169.5,169.44,4.44085396]
[1729471170537,6.73290168,169.48,169.45,4.44085396]
[1729471170736,6.73290168,169.48,169.46,1.70607799]
[1729471170737,0.83250168,169.48,169.46,1.70607799]
[1729471170956,0.83250168,169.48,169.47,1.70607799]
[1729471171358,0.83250168,169.48,169.41,4.44085396]
[1729471171648,0.83250168,169.48,169.42,4.44085396]
[1729471171849,0.83250168,169.48,169.43,4.44085396]
[1729471172061,0.83250168,169.48,169.44,1.70607799]
[1729471172364,0.83250168,169.48,169.45,1.70607799]
[1729471172561,0.83250168,169.48,169.46,1.70607799]
[1729471172746,0.83250168,169.48,169.47,1.70607799]
[1729471173147,0.83250168,169.48,169.42,2.73477597]
[1729471173349,0.83250168,169.48,169.43,4.43957639]
[1729471173549,6.73290168,169.48,169.44,1.70480042]
[1729471173762,6.73290168,169.48,169.45,1.70480042]
[1729471173945,6.73290168,169.48,169.46,1.70480042]
[1729471174147,6.73290168,169.48,169.47,1.70480042]
[1729471174358,6.73290168,169.48,169.41,2.73477597]
[1729471174561,6.73290168,169.48,169.42,1.70474319]
[1729471174852,6.73290168,169.48,169.43,1.70474319]
[1729471175046,6.73290168,169.48,169.44,1.70474319]
[1729471175280,6.73290168,169.48,169.45,1.70474319]
[1729471175564,5.9007,169.47,169.46,1.70474319]
[1729471175764,5.9007,169.47,169.41,4.43951916]
[1729471176068,5.9007,169.47,169.42,1.70474319]
[1729471176373,5.9007,169.47,169.43,1.70399099]
[1729471176547,6.73290168,169.48,169.44,1.70399099]
[1729471176754,6.73290168,169.48,169.45,1.70399099]
[1729471176957,6.73320168,169.48,169.4,2.72679451]
[1729471177154,6.73320168,169.48,169.41,1.70433176]
[1729471177469,6.73320168,169.48,169.42,1.70433176]
[1729471177766,6.73320168,169.48,169.43,1.70433176]
[1729471177971,6.73320168,169.48,169.44,1.70433176]
[1729471178164,6.73320168,169.48,169.45,1.70433176]
[1729471178363,6.73320168,169.48,169.4,2.72679451]
[1729471178552,6.73320168,169.48,169.41,1.70450852]
[1729471178753,6.73320168,169.48,169.42,1.70450852]
[1729471178944,6.73320168,169.48,169.43,1.70450852]
[1729471179144,6.73320168,169.48,169.44,1.70450852]
[1729471179365,0.83250168,169.48,169.45,1.70450852]
[1729471179549,0.83250168,169.48,169.4,2.72679451]
[1729471179744,22.28510168,169.48,169.41,1.70480768]
[1729471179963,22.28510168,169.48,169.42,1.70480768]
[1729471180143,23.776884,169.47,169.43,1.70480768]
[1729471180347,23.776884,169.47,169.35,2.72679451]
[1729471180546,5.9022,169.43,169.36,4.43222767]
[1729471180749,5.9022,169.43,169.37,1.70543316]
[1729471180969,5.9022,169.43,169.38,1.70543316]
[1729471181168,6.73877148,169.43,169.39,1.70543316]
[1729471181369,6.73877148,169.43,169.4,1.70543316]
[1729471181568,5.9024,169.42,169.34,12.25089451]
[1729471181876,5.9024,169.42,169.35,1.7062728]
[1729471182056,5.9024,169.42,169.36,1.7062728]
[1729471182255,5.9024,169.42,169.37,1.7062728]
[1729471182472,23.776884,169.42,169.38,1.7062728]
[1729471182782,23.776884,169.42,169.34,9.5241]
[1729471182783,5.9031,169.41,169.34,9.5241]
[1729471182960,5.9024,169.42,169.37,5.9042]
[1729471183155,5.9024,169.42,169.38,1.70667475]
[1729471187587,0.83657148,169.43,169.38,7.61017475]
[1729471187806,6.73867148,169.43,169.39,1.70667475]
[1729471188467,0.83657148,169.43,169.39,1.70667475]
[1729471188662,0.83657148,169.43,169.4,1.70667475]
[1729471188867,0.83657148,169.43,169.36,2.7310892]
[1729471189082,0.83657148,169.43,169.37,1.70623371]
[1729471189293,0.83657148,169.43,169.4,5.9031]
[1729471189873,0.83657148,169.43,169.36,2.7310892]
[1729471190068,0.83657148,169.43,169.37,1.70587122]
[1729471190276,0.83657148,169.43,169.41,5.9027]
[1729471190982,0.83657148,169.43,169.4,5.9031]
[1729471191184,0.83657148,169.43,169.41,1.705965]
[1729471194106,0.83657148,169.43,169.4,5.9031]
[1729471194278,0.83657148,169.43,169.41,1.70608069]
[1729471195182,0.83657148,169.43,169.39,5.9035]
[1729471195496,0.83657148,169.43,169.4,1.70645814]
[1729471196799,0.83657148,169.43,169.41,1.70645814]
[1729471196999,0.83657148,169.43,169.38,5.9038]
[1729471197300,0.83657148,169.43,169.39,1.70631458]
[1729471197474,0.83657148,169.43,169.4,1.70631458]
[1729471197669,0.83657148,169.43,169.41,1.70631458]
[1729471197886,0.83657148,169.43,169.35,20.0]
[1729471198085,6.73877148,169.43,169.36,2.73045609]
[1729471198283,6.73877148,169.43,169.37,1.70631435]
[1729471198484,6.73877148,169.43,169.36,4.43674471]
[1729471198485,5.9031,169.41,169.38,1.70631435]
[1729471198800,23.776884,169.42,169.39,1.70631435]
[1729471198801,5.9032,169.4,169.39,1.70631435]
[1729471199490,5.9032,169.4,169.37,1.70631435]
[1729471199802,5.9032,169.4,169.38,1.70631435]
[1729471200001,5.9032,169.4,169.39,1.70696404]
[1729471200901,5.9032,169.4,169.36,1.70623213]
[1729471201112,6.73996771,169.4,169.39,1.70694466]
[1729471201400,6.73996771,169.4,169.37,1.70694466]
[1729471201582,6.73996771,169.4,169.38,1.70694466]
[1729471201778,6.73996771,169.4,169.39,1.70694466]
[1729471202177,6.73996771,169.4,169.37,1.70694466]
[1729471202382,6.73996771,169.4,169.38,1.70694466]
[1729471202585,6.73996771,169.4,169.39,1.7071519]
[1729471202828,6.73996771,169.4,169.37,1.7071519]
[1729471202992,6.73996771,169.4,169.38,1.7071519]
[1729471203190,6.73996771,169.4,169.39,1.7071519]
[1729471203602,30.51685171,169.4,169.37,1.7071519]
[1729471203809,5.9035,169.39,169.38,1.7071519]
[1729471204308,5.9035,169.39,169.38,1.70755448]
[1729471204601,5.9035,169.39,169.37,1.70755448]
[1729471204913,5.9035,169.39,169.38,1.70755448]
[1729471205403,5.9035,169.39,169.37,1.70755448]
[1729471205600,5.9035,169.39,169.38,1.70755448]
[1729471206494,24.61365171,169.4,169.38,1.70755448]
[1729471206703,30.51685171,169.4,169.35,5.9046]
[1729471206888,30.51685171,169.4,169.36,1.70766747]
[1729471207083,30.51685171,169.4,169.37,1.70766747]
[1729471207391,24.61365171,169.4,169.38,1.70766747]
[1729471207598,29.680384,169.39,169.34,5.9052]
[1729471207805,29.680384,169.39,169.35,1.70775052]
[1729471207994,29.680384,169.39,169.36,1.70775052]
[1729471208309,23.776884,169.39,169.37,1.70729658]
[1729471208610,23.776884,169.39,169.38,1.70729658]
[1729471208812,23.776884,169.39,169.36,1.70729658]
[1729471209010,23.776884,169.39,169.37,1.70729658]
[1729471209189,23.776884,169.39,169.38,1.70729658]
[1729471209511,6.73996771,169.4,169.38,1.70729658]
[1729471209689,6.73996771,169.4,169.39,1.70729658]
[1729471210013,0.83676771,169.4,169.39,7.6098157]
[1729471211402,0.83676771,169.4,169.39,5.9035]
[1729471211688,0.83676771,169.4,169.39,7.60940682]
[1729471215008,0.83676771,169.4,169.39,5.9035]
[1729471215333,0.83676771,169.4,169.39,7.60991575]
[1729471215627,0.83676771,169.4,169.39,1.70641575]
[1729471215788,0.83676771,169.4,169.31,26.4681]
[1729471215789,0.83676771,169.4,169.34,4.43709043]
[1729471215993,0.83676771,169.4,169.39,5.9035]
[1729471216204,0.83676771,169.4,169.39,7.60991575]
[1729471217310,0.83676771,169.4,169.39,1.70641575]
[1729471217613,0.83676771,169.4,169.38,5.9038]
[1729471217796,0.83676771,169.4,169.39,1.70641575]
[1729471218690,0.83676771,169.4,169.39,1.70635981]
[1729471218891,0.83676771,169.4,169.37,5.9042]
[1729471219199,0.83676771,169.4,169.39,5.9035]
[1729471219405,0.83676771,169.4,169.39,7.60959352]
[1729471222326,0.83676771,169.4,169.39,5.9035]
[1729471222626,0.83657148,169.43,169.42,5.9024]
[1729471222838,0.83657148,169.43,169.42,7.60831273]
[1729471223217,22.0046,169.53,169.42,1.70591273]
[1729471223435,16.106,169.53,169.43,4.43578275]
[1729471223616,16.106,169.53,169.4,0.2]
[1729471223617,16.106,169.53,169.44,4.43578275]
[1729471223809,16.106,169.53,169.45,4.43578275]
[1729471224009,16.93777371,169.53,169.46,1.70591273]
[1729471224328,16.93777371,169.53,169.47,1.70591273]
[1729471224527,16.93777371,169.53,169.48,1.70591273]
[1729471224712,16.93777371,169.53,169.49,1.70591273]
[1729471225029,16.93777371,169.53,169.5,1.70591273]
[1729471225222,16.93777371,169.53,169.42,2.72987002]
[1729471225534,16.93777371,169.53,169.43,4.43426393]
[1729471225735,16.93777371,169.53,169.44,4.43426393]
[1729471225917,16.93777371,169.53,169.45,4.43426393]
[1729471226115,16.93777371,169.53,169.46,1.70439391]
[1729471226311,16.93777371,169.53,169.41,0.1]
[1729471226312,16.93777371,169.53,169.47,1.70439391]
[1729471226512,16.93777371,169.53,169.48,1.70439391]
[1729471226812,16.93777371,169.53,169.42,2.72987002]
[1729471227028,16.93777371,169.53,169.41,0.2]
[1729471227029,16.93777371,169.53,169.43,4.43415665]
[1729471227230,16.93777371,169.53,169.44,4.43415665]
[1729471227537,16.93777371,169.53,169.45,1.70428663]
[1729471227732,16.93777371,169.53,169.46,1.70428663]
[1729471227911,16.93777371,169.53,169.47,1.70428663]
[1729471228117,22.83637371,169.53,169.43,2.72987002]
[1729471228434,22.83637371,169.53,169.44,1.70403342]
[1729471228635,5.8973,169.57,169.46,26.4916]
[1729471228810,15.6711,169.6,169.47,4.43390344]
[1729471229006,15.6711,169.6,169.48,1.70403342]
[1729471229007,5.8976,169.56,169.48,1.70403342]
[1729471229751,5.8976,169.56,169.46,26.4916]
[1729471229919,6.69033877,169.56,169.47,4.42835746]
[1729471230217,6.69033877,169.56,169.48,1.7033132]
[1729471230418,6.69033877,169.56,169.49,1.7033132]
[1729471230620,6.69033877,169.56,169.47,2.72570995]
[1729471230822,6.69033877,169.56,169.48,1.70279427]
[1729471231246,6.69033877,169.56,169.49,1.70279427]
[1729471231452,6.69033877,169.56,169.47,2.72570995]
[1729471231751,6.69033877,169.56,169.47,4.42755659]
[1729471232040,6.69033877,169.56,169.48,1.7017036]
[1729471232249,6.69033877,169.56,169.49,1.7017036]
[1729471232544,6.69033877,169.56,169.47,2.7231343]
[1729471232742,0.79273877,169.56,169.47,4.42438546]
[1729471233820,0.79273877,169.56,169.48,23.876884]
[1729471234043,0.79273877,169.56,169.49,4.42438546]
[1729471234541,0.79273877,169.56,169.47,2.7231343]
[1729471234752,0.79273877,169.56,169.47,4.42358431]
[1729471236265,21.4212,169.54,169.47,4.42358431]
[1729471236545,5.8993,169.52,169.41,6.0161]
[1729471236753,6.6922374,169.52,169.42,1.70090208]
[1729471237229,0.7929374,169.52,169.42,1.70090208]
[1729471237429,0.7929374,169.52,169.43,1.70093076]
[1729471237642,0.7929374,169.52,169.44,1.70093076]
[1729471237951,0.7929374,169.52,169.45,1.70093076]
[1729471238126,0.7929374,169.52,169.46,1.70093076]
[1729471238326,0.7929374,169.52,169.47,1.70093076]
[1729471238550,0.7929374,169.52,169.45,0.1]
[1729471238551,0.7929374,169.52,169.48,1.70093076]
[1729471238763,0.7929374,169.52,169.46,20.0]
[1729471239056,0.7929374,169.52,169.47,1.69994364]
[1729471239430,0.7929374,169.52,169.42,20.2]
[1729471239631,0.7929374,169.52,169.43,1.69961806]
[1729471241256,0.7929374,169.52,169.43,4.4186354]
[1729471241447,0.7929374,169.52,169.44,1.69931829]
[1729471241829,0.7929374,169.52,169.44,21.69923368]
[1729471242138,0.7929374,169.52,169.42,2.81918171]
[1729471242139,0.7929374,169.52,169.45,21.69923368]
[1729471242348,0.7929374,169.52,169.46,1.69923368]
[1729471243056,0.7929374,169.52,169.43,22.71899832]
[1729471243243,0.7929374,169.52,169.44,1.69913787]
[1729471243451,0.7929374,169.52,169.44,24.41813619]
[1729471243638,0.7929374,169.52,169.45,1.69913787]
[1729471243958,0.7929374,169.52,169.45,21.69913787]
[1729471244249,0.7929374,169.52,169.46,1.69913787]
[1729471244656,0.7929374,169.52,169.43,2.71879464]
[1729471244860,0.7929374,169.52,169.44,1.69907486]
[1729471245257,0.7929374,169.52,169.45,1.69906293]
[1729471245551,0.7929374,169.52,169.46,1.6990569]
[1729471245742,0.7929374,169.52,169.42,22.91889877]
[1729471245930,0.7929374,169.52,169.43,4.41799614]
[1729471246131,0.7929374,169.52,169.44,1.69909737]
[1729471246333,0.7929374,169.52,169.45,1.69909737]
[1729471246651,0.7929374,169.52,169.46,1.69922103]
[1729471246950,0.7929374,169.52,169.43,2.71889877]
[1729471247159,0.7929374,169.52,169.44,1.69913996]
[1729471247335,0.7929374,169.52,169.45,1.69913996]
[1729471247654,0.7929374,169.52,169.43,2.71889877]
[1729471247875,0.7929374,169.52,169.44,1.6992171]
[1729471248060,0.7929374,169.52,169.45,1.6992171]
[1729471248237,0.7929374,169.52,169.43,2.71889877]
[1729471248238,0.7929374,169.52,169.46,1.6992171]
[1729471248434,0.7929374,169.52,169.43,2.71889877]
[1729471248652,0.7929374,169.52,169.44,1.69905317]
[1729471248929,0.7929374,169.52,169.45,1.69905317]
[1729471249134,0.7929374,169.52,169.46,1.69905424]
[1729471249439,0.7929374,169.52,169.43,2.71889452]
[1729471249635,0.7929374,169.52,169.42,20.2]
[1729471249636,0.7929374,169.52,169.44,1.69940668]
[1729471249834,0.7929374,169.52,169.45,1.69940668]
[1729471250035,0.7929374,169.52,169.46,1.69940668]
[1729471250344,0.7929374,169.52,169.43,2.71889452]
[1729471250548,0.7929374,169.52,169.44,1.69915669]
[1729471250846,0.7929374,169.52,169.45,1.69915669]
[1729471251055,0.7929374,169.52,169.46,1.69915669]
[1729471251252,0.7929374,169.52,169.43,2.71889452]
[1729471251467,0.7929374,169.52,169.44,1.6991631]
[1729471251637,0.7929374,169.52,169.45,1.6991631]
[1729471251961,0.7929374,169.52,169.46,1.6991631]
[1729471252167,0.7929374,169.52,169.42,22.81889452]
[1729471252334,0.7929374,169.52,169.43,4.41842399]
[1729471252533,0.7929374,169.52,169.44,1.69952947]
[1729471252734,0.7929374,169.52,169.45,1.69952947]
[1729471252935,22.8450374,169.52,169.43,2.71889452]
[1729471253161,23.776884,169.51,169.37,12.11241118]
[1729471253361,5.9005,169.48,169.37,6.1922]
[1729471253566,5.9005,169.48,169.38,1.7004667]
[1729471253949,23.776884,169.51,169.38,1.7004667]
[1729471254150,23.776884,169.51,169.36,12.24476778]
[1729471254151,5.9009,169.47,169.39,1.7004667]
[1729471254346,6.69621857,169.47,169.4,1.7004667]
[1729471254558,6.69621857,169.47,169.41,1.7004667]
[1729471254865,6.69621857,169.47,169.37,22.72066778]
[1729471255159,6.69621857,169.47,169.38,1.70153298]
[1729471256245,0.79531857,169.47,169.38,1.70153298]
[1729471256871,6.69601857,169.47,169.38,1.70153298]
[1729471257767,0.79531857,169.47,169.38,1.70153298]
[1729471262920,0.79531857,169.47,169.39,1.70252691]
[1729471263194,15.9192,169.45,169.4,1.70252691]
[1729471263892,5.9018,169.44,169.33,2.72445159]
[1729471264191,5.9027,169.42,169.34,1.70273576]
[1729471264393,23.776884,169.44,169.35,1.70273576]
[1729471264568,5.9022,169.43,169.36,1.70273576]
[1729471264770,5.9022,169.43,169.37,1.70273576]
[1729471265091,5.9025,169.42,169.31,13.27433771]
[1729471265270,5.9025,169.42,169.37,5.904]
[1729471265992,5.9025,169.42,169.38,1.70302154]
[1729471266170,0.79547994,169.43,169.38,1.70302154]
[1729471266371,0.79547994,169.43,169.3,2.72445159]
[1729471266372,5.903,169.41,169.36,5.9045]
[1729471266691,29.681084,169.38,169.32,5.9059]
[1729471266999,5.9042,169.37,169.33,1.70448021]
[1729471267491,5.9042,169.37,169.32,5.9059]
[1729471267892,6.700015,169.37,169.32,5.9059]
[1729471271887,0.795815,169.37,169.25,1.02594492]
[1729471272089,6.700015,169.37,169.32,5.9059]
[1729471276186,6.700015,169.37,169.25,1.02594492]
[1729471276187,5.905,169.35,169.3,5.9066]
[1729471276381,5.906,169.32,169.26,5.908]
[1729471276598,5.906,169.32,169.27,1.70014466]
[1729471276912,5.9056,169.33,169.28,5.9073]
[1729471278083,23.776884,169.34,169.23,12.2467482]
[1729471278283,23.776884,169.34,169.24,1.69973719]
[1729471278506,5.9061,169.32,169.27,5.9076]
[1729471279183,23.776884,169.31,169.26,5.9077]
[1729471279503,29.682784,169.32,169.26,5.9077]
[1729471280104,5.9064,169.31,169.26,5.9077]
[1729471280292,6.69094489,169.31,169.26,5.9077]
[1729471286898,0.78454489,169.31,169.27,5.9073]
[1729471287214,0.78454489,169.31,169.21,2.71620347]
[1729471287422,6.69084489,169.31,169.26,5.9079]
[1729471288220,6.69084489,169.31,169.27,5.9076]
[1729471289115,0.78454489,169.31,169.27,5.9076]
[1729471289416,0.78454489,169.31,169.27,5.9075]
[1729471290595,0.78454489,169.31,169.28,5.9071]
[1729471290819,0.78454489,169.31,169.28,5.907]
[1729471292000,0.78454489,169.31,169.21,2.71620347]
[1729471292308,14.28354467,169.3,169.29,5.9069]
[1729471292501,0.78454489,169.31,169.29,5.9069]
[1729471293220,0.78454489,169.31,169.28,5.9072]
[1729471294995,0.78446048,169.34,169.22,23.876884]
[1729471295197,0.78446048,169.34,169.33,5.9056]
[1729471298509,0.78446048,169.34,169.33,7.5997823]
[1729471299225,16.3675,169.4,169.33,1.6941823]
[1729471299532,16.3675,169.4,169.34,1.6941823]
[1729471299721,16.3675,169.4,169.38,5.9038]
[1729471300027,16.3675,169.4,169.31,2.71185682]
[1729471300230,23.05481649,169.4,169.33,5.9056]
[1729471300450,23.05481649,169.4,169.32,1.69414675]
[1729471300451,5.9037,169.39,169.34,5.9052]
[1729471300612,23.05481649,169.4,169.35,5.9046]
[1729471300917,17.15161649,169.4,169.28,2.91185682]
[1729471301130,17.15161649,169.4,169.36,5.9044]
[1729471306402,23.05491649,169.4,169.35,5.9048]
[1729471306817,23.776884,169.39,169.28,2.71504451]
[1729471307114,23.776884,169.39,169.27,20.1]
[1729471307115,29.680684,169.39,169.33,5.9052]
[1729471307804,5.9039,169.38,169.33,5.9052]
[1729471308332,29.680384,169.39,169.34,5.9052]
[1729471310606,17.15161649,169.4,169.35,5.9046]
[1729471310607,23.05511649,169.4,169.35,5.9046]
[1729471310809,17.15161649,169.4,169.37,5.9039]
[1729471311633,17.15161649,169.4,169.38,5.9036]
[1729471311934,17.15161649,169.4,169.31,5.9063]
[1729471312133,17.15161649,169.4,169.32,1.70164917]
[1729471312337,17.15161649,169.4,169.37,5.9041]
[1729471312630,17.15161649,169.4,169.39,5.9035]
[1729471312631,0.78411649,169.4,169.39,5.9035]